[Event "WJCC U20 Open 2019"]
[Site "New Delhi"]
[Date "2019.10.17"]
[Round "4.20"]
[White "Muthaiah AL"]
[Black "Aravindh, Chithambaram VR."]
[Result "0-1"]
[ECO "A21"]
[WhiteElo "2370"]
[BlackElo "2609"]
[Annotator "RC"]
[PlyCount "114"]
[EventDate "2019.10.15"]
[EventType "swiss"]
[EventCountry "IND"]
[SourceTitle "playchess.com"]
[Source "ChessBase"]
[SourceQuality "1"]
[TimeControl "40/5400+30:1800+30"]

1. c4 {[%emt 0:00:00]} e5 {[%emt 0:01:14]} 2. Nc3 {[%emt 0:00:37]} Bb4 {[%emt 0:00:19]} 3. e3 {[%emt 0:02:29]} Nf6 {[%emt 0:01:09]} 4. Nge2 {[%emt 0:00:35]} O-O {[%emt 0:00:45]} 5. a3 {[%emt 0:01:04]} Be7 {[%emt 0:00:14]} 6. d4 {[%emt 0:01:19]} exd4 {[%emt 0:00:13]} 7. Nxd4 {[%emt 0:10:30]} d5 {[%emt 0:00:19]} 8. cxd5 {[%emt 0:04:46]} Nxd5 {[%emt 0:01:12]} 9. Bd2 {[%emt 0:00:19]} Bf6 {[%emt 0:06:05]} 10. Nxd5 {[%emt 0:08:56]} Qxd5 {[%emt 0:00:15]} 11. Bc3 {[%emt 0:00:11]} Re8 {[%emt 0:08:08]} 12. Nb5 {[%emt 0:10:50]} Bxc3+ {[%emt 0:06:40]} 13. Nxc3 {[%emt 0:00:48]} Qg5 {[%emt 0:02:43]} 14. Qf3 {[%emt 0:03:15]} Nc6 {[%emt 0:03:17]} 15. Qg3 {[%emt 0:05:10]} Qe5 {[%emt 0:06:28]} 16. Bb5 {[%emt 0:06:57]} Bd7 {[%emt 0:00:08]} 17. Rd1 {[%emt 0:02:51]} Rad8 {[%emt 0:00:37]} 18. Qxe5 {[%emt 0:02:27]} Nxe5 {[%emt 0:00:32]} 19. Bxd7 {[%emt 0:00:22]} Rxd7 {[%emt 0:00:17]} 20. Rxd7 {[%emt 0:01:10]} Nxd7 {[%emt 0:00:04]} 21. Ke2 {[%emt 0:00:21]} Kf8 {[%emt 0:05:24]} 22. Rd1 {[%emt 0:02:37]} Ke7 {[%emt 0:00:25]} 23. Rd4 {[%emt 0:07:29]} Kd8 {[%emt 0:02:18]} 24. Re4 {[%emt 0:01:56]} c6 {[%emt 0:05:43]} 25. Rxe8+ {[%emt 0:01:33]} Kxe8 {[%emt 0:00:05]} 26. e4 {[%emt 0:00:43]} Ke7 {[%emt 0:04:59]} 27. f4 {[%emt 0:01:59]} f6 {[%emt 0:00:30]} 28. b4 {[%emt 0:06:17]} Kd6 {[%emt 0:02:15]} 29. Kd3 {[%emt 0:03:05]} a6 {[%emt 0:00:13]} 30. a4 {[%emt 0:03:21]} b6 {[%emt 0:03:31]} 31. h4 {[%emt 0:02:52]} Nf8 {[%emt 0:01:41]} 32. g3 {[%emt 0:02:12]} Ne6 {[%emt 0:00:34]} 33. Ne2 {[%emt 0:02:01]} g6 {[%emt 0:07:23]} 34. Nd4 {[%emt 0:00:23]} Ng7 {[%emt 0:00:35]} 35. Ne2 {[%emt 0:01:11]} b5 {[%emt 0:01:32]} 36. axb5 {[%emt 0:00:09]} axb5 {[%emt 0:00:06]} 37. Nd4 {[%emt 0:01:40]} Nh5 {[%emt 0:01:55]} 38. Ne2 {[%emt 0:00:10]} f5 {[%emt 0:02:46]} 39. e5+ {[%emt 0:02:22]} Kd5 {[%emt 0:00:11]} 40. Nc3+ {[%emt 0:00:59]} Ke6 {[%emt 0:00:06]} 41. Ne2 {[%emt 0:30:27]} Kd5 {[%emt 0:30:41]} 42. Nc3+ {[%emt 0:00:40]} Ke6 {[%emt 0:00:06]} 43. Ne2 {[%emt 0:00:38]} c5 {[%emt 0:00:59]} 44. bxc5 {[%emt 0:00:00]} Kd5 {[%emt 0:00:00]} 45. c6 {[%emt 0:00:00]} Kxc6 {[%emt 0:00:00]} 46. Kd4 {[%emt 0:00:00]} Ng7 {[%emt 0:00:00]} 47. e6 {[%emt 0:00:00]} Kd6 {[%emt 0:00:00]} 48. e7 {[%emt 0:00:00]} Ne6+ {[%emt 0:00:00]} 49. Kc3 {[%emt 0:00:00]} Kxe7 {[%emt 0:00:00]} 50. Kb4 {[%emt 0:00:00]} Kd6 {[%emt 0:00:00]} 51. Nc3 {[%emt 0:04:40]} Nc7 {[%emt 0:00:00]} 52. Nd1 {[%emt 0:01:07]} Kd5 {[%emt 0:00:00]} 53. Nf2 {[%emt 0:00:17]} Kd4 {[%emt 0:00:00]} 54. g4 {[%emt 0:00:38]} Ke3 {[%emt 0:00:00]} 55. gxf5 {[%emt 0:00:20]} Kxf2 {[%emt 0:00:00]} 56. f6 {[%emt 0:00:44]} Nd5+ {[%emt 0:00:00]} 57. Kxb5 {[%emt 0:00:11]} Nxf6 {[%emt 0:00:00]} 0-1

[Event "WJCC U20 Open 2019"]
[Site "New Delhi"]
[Date "2019.10.17"]
[Round "4.21"]
[White "Pogosyan, Stefan"]
[Black "Albornoz Cabrera, Carlos Daniel"]
[Result "1/2-1/2"]
[ECO "D38"]
[WhiteElo "2364"]
[BlackElo "2581"]
[Annotator "ChessBase"]
[PlyCount "82"]
[EventDate "2019.10.15"]
[EventType "swiss"]
[EventCountry "IND"]
[SourceTitle "playchess.com"]
[Source "ChessBase"]
[SourceQuality "1"]
[TimeControl "40/5400+30:1800+30"]

1. d4 {[%emt 0:00:00]} Nf6 {[%emt 0:00:00]} 2. c4 {[%emt 0:00:00]} e6 {[%emt 0:00:00]} 3. Nf3 {[%emt 0:00:03]} d5 {[%emt 0:00:00]} 4. Nc3 {[%emt 0:00:08]} Bb4 {[%emt 0:00:00]} 5. Qa4+ {[%emt 0:00:25]} Nc6 {[%emt 0:00:01]} 6. e3 {[%emt 0:00:04]} O-O {[%emt 0:01:15]} 7. Qc2 {[%emt 0:00:34]} b6 {[%emt 0:01:55]} 8. a3 {[%emt 0:01:02]} Bxc3+ {[%emt 0:00:20]} 9. Qxc3 {[%emt 0:00:11]} Ba6 {[%emt 0:03:22]} 10. b4 {[%emt 0:07:41]} dxc4 {[%emt 0:04:38]} 11. Bxc4 {[%emt 0:00:51]} Ne4 {[%emt 0:00:48]} 12. Qc2 {[%emt 0:02:01]} Bxc4 {[%emt 0:00:07]} 13. Qxc4 {[%emt 0:00:07]} Qd5 {[%emt 0:00:08]} 14. Qxd5 {[%emt 0:02:08]} exd5 {[%emt 0:00:02]} 15. Bb2 {[%emt 0:01:37]} Nd6 {[%emt 0:01:54]} 16. Nd2 {[%emt 0:02:02]} b5 {[%emt 0:01:38]} 17. Rc1 {[%emt 0:07:43]} Nc4 {[%emt 0:01:43]} 18. Nxc4 {[%emt 0:00:36]} bxc4 {[%emt 0:00:19]} 19. Bc3 {[%emt 0:00:32]} Rfb8 {[%emt 0:14:05]} 20. Ke2 {[%emt 0:09:12]} a5 {[%emt 0:03:07]} 21. bxa5 {[%emt 0:01:18]} Rb3 {[%emt 0:03:48]} 22. Bb4 {[%emt 0:02:28]} Nxa5 {[%emt 0:04:41]} 23. Rb1 {[%emt 0:10:55]} Rxb1 {[%emt 0:00:55]} 24. Rxb1 {[%emt 0:00:04]} Nb3 {[%emt 0:00:17]} 25. g4 {[%emt 0:06:55]} f6 {[%emt 0:01:39]} 26. Kd1 {[%emt 0:02:41]} Kf7 {[%emt 0:00:52]} 27. Kc2 {[%emt 0:02:27]} h5 {[%emt 0:07:23]} 28. h3 {[%emt 0:04:12]} hxg4 {[%emt 0:02:55]} 29. hxg4 {[%emt 0:00:11]} Rh8 {[%emt 0:00:04]} 30. Kc3 {[%emt 0:02:10]} Ke6 {[%emt 0:01:52]} 31. a4 {[%emt 0:10:57]} Ra8 {[%emt 0:02:55]} 32. a5 {[%emt 0:00:10]} Ra7 {[%emt 0:01:15]} 33. f4 {[%emt 0:04:52]} g6 {[%emt 0:11:40]} 34. Rh1 {[%emt 0:04:07]} c5 {[%emt 0:01:35]} 35. Bxc5 {[%emt 0:03:47]} Nxc5 {[%emt 0:01:03]} 36. dxc5 {[%emt 0:00:09]} Rxa5 {[%emt 0:00:06]} 37. Kd4 {[%emt 0:01:18]} Ra3 {[%emt 0:01:38]} 38. f5+ {[%emt 0:00:56]} gxf5 {[%emt 0:00:05]} 39. gxf5+ {[%emt 0:00:04]} Kxf5 {[%emt 0:00:09]} 40. Kxd5 {[%emt 0:01:30]} Rd3+ {[%emt 0:00:50]} 41. Kxc4 {[%emt 0:30:45]} Rxe3 {[%emt 0:30:04]} 1/2-1/2

[Event "WJCC U20 Open 2019"]
[Site "New Delhi"]
[Date "2019.10.17"]
[Round "4.23"]
[White "Gazik, Viktor"]
[Black "Parkhov, Yair"]
[Result "1/2-1/2"]
[ECO "A06"]
[WhiteElo "2546"]
[BlackElo "2350"]
[Annotator "ChessBase"]
[PlyCount "88"]
[EventDate "2019.10.15"]
[EventType "swiss"]
[EventCountry "IND"]
[SourceTitle "playchess.com"]
[Source "ChessBase"]
[SourceQuality "1"]
[TimeControl "40/5400+30:1800+30"]

1. Nf3 {[%emt 0:01:46]} d5 {[%emt 0:00:00]} 2. b3 {[%emt 0:00:55]} c5 {[%emt 0:01:41]} 3. Bb2 {[%emt 0:00:18]} Nc6 {[%emt 0:00:34]} 4. e3 {[%emt 0:00:05]} Nf6 {[%emt 0:00:49]} 5. Bb5 {[%emt 0:00:52]} Bd7 {[%emt 0:01:04]} 6. O-O {[%emt 0:00:24]} e6 {[%emt 0:00:12]} 7. Bxc6 {[%emt 0:08:53]} Bxc6 {[%emt 0:00:08]} 8. Ne5 {[%emt 0:00:04]} Rc8 {[%emt 0:00:12]} 9. d3 {[%emt 0:04:27]} Be7 10. f4 {[%emt 0:03:51]} O-O {[%emt 0:01:21]} 11. Rf3 {[%emt 0:01:31]} Nd7 {[%emt 0:14:08]} 12. Rh3 {[%emt 0:02:03]} Nxe5 {[%emt 0:08:42]} 13. Qh5 {[%emt 0:14:27]} h6 {[%emt 0:00:36]} 14. fxe5 {[%emt 0:05:28]} f5 {[%emt 0:27:52]} 15. Nc3 {[%emt 0:27:59]} Qe8 {[%emt 0:02:30]} 16. Qd1 {[%emt 0:01:02]} Kh7 {[%emt 0:02:17]} 17. d4 {[%emt 0:01:18]} g5 {[%emt 0:01:40]} 18. Rf3 {[%emt 0:01:33]} cxd4 {[%emt 0:02:01]} 19. Qxd4 {[%emt 0:03:15]} b6 {[%emt 0:02:25]} 20. Rf2 {[%emt 0:13:00]} Qg6 {[%emt 0:02:28]} 21. b4 {[%emt 0:01:33]} Bd7 {[%emt 0:10:04]} 22. a3 {[%emt 0:00:43]} Rc4 {[%emt 0:01:58]} 23. Qd3 {[%emt 0:01:01]} Rfc8 {[%emt 0:01:27]} 24. Ne2 {[%emt 0:00:46]} Rf8 {[%emt 0:04:13]} 25. Nd4 {[%emt 0:02:13]} g4 {[%emt 0:04:05]} 26. Raf1 {[%emt 0:00:15]} Bg5 {[%emt 0:02:05]} 27. Qe2 {[%emt 0:01:46]} h5 {[%emt 0:00:39]} 28. e4 {[%emt 0:00:30]} Rcc8 {[%emt 0:05:51]} 29. exf5 {[%emt 0:00:33]} exf5 {[%emt 0:00:08]} 30. e6 {[%emt 0:00:50]} Rce8 {[%emt 0:00:11]} 31. Rxf5 {[%emt 0:01:22]} Rxf5 {[%emt 0:00:39]} 32. Rxf5 {[%emt 0:00:31]} Rxe6 {[%emt 0:01:12]} 33. Qf1 {[%emt 0:00:44]} Rf6 {[%emt 0:01:50]} 34. Rxf6 {[%emt 0:00:14]} Qxf6 {[%emt 0:00:51]} 35. Qe2 {[%emt 0:00:45]} Qf4 {[%emt 0:00:29]} 36. g3 {[%emt 0:00:25]} Qe3+ {[%emt 0:00:12]} 37. Kf1 {[%emt 0:00:09]} Kg6 {[%emt 0:01:17]} 38. Qa6 {[%emt 0:00:51]} Qe4 {[%emt 0:00:27]} 39. Qd3 {[%emt 0:00:22]} Qxd3+ {[%emt 0:00:18]} 40. cxd3 {[%emt 0:00:02]} Bf6 {[%emt 0:00:19]} 41. Kf2 {[%emt 0:30:22]} a5 {[%emt 0:30:31]} 42. bxa5 {[%emt 0:00:39]} bxa5 {[%emt 0:00:07]} 43. Bc3 {[%emt 0:00:06]} Bxd4+ {[%emt 0:00:08]} 44. Bxd4 {[%emt 0:00:05]} Kf5 {[%emt 0:00:18]} 1/2-1/2

[Event "WJCC U20 Open 2019"]
[Site "New Delhi"]
[Date "2019.10.17"]
[Round "4.24"]
[White "Visakh N R"]
[Black "Kukelko, Alexey"]
[Result "1-0"]
[ECO "A45"]
[WhiteElo "2529"]
[BlackElo "2342"]
[Annotator "ChessBase"]
[PlyCount "107"]
[EventDate "2019.10.15"]
[EventType "swiss"]
[EventCountry "IND"]
[SourceTitle "playchess.com"]
[Source "ChessBase"]
[SourceQuality "1"]
[TimeControl "40/5400+30:1800+30"]

1. d4 {[%emt 0:00:55]} Nf6 {[%emt 0:00:42]} 2. Bg5 {[%emt 0:00:22]} c5 {[%emt 0:00:32]} 3. Bxf6 {[%emt 0:01:46]} gxf6 {[%emt 0:01:04]} 4. d5 {[%emt 0:00:43]} Qb6 {[%emt 0:00:57]} 5. Qc1 {[%emt 0:01:20]} f5 {[%emt 0:01:57]} 6. c4 {[%emt 0:12:10]} Bg7 {[%emt 0:01:54]} 7. Nc3 {[%emt 0:00:47]} d6 {[%emt 0:00:51]} 8. e3 {[%emt 0:02:15]} Nd7 {[%emt 0:07:38]} 9. Nh3 {[%emt 0:02:11]} Nf6 {[%emt 0:05:33]} 10. Qc2 {[%emt 0:03:23]} Ne4 {[%emt 0:14:52]} 11. Rc1 {[%emt 0:01:34]} e6 {[%emt 0:12:06]} 12. Bd3 {[%emt 0:03:30]} Nxc3 {[%emt 0:08:52]} 13. bxc3 {[%emt 0:00:03]} Be5 {[%emt 0:00:45]} 14. O-O {[%emt 0:01:09]} Bd7 {[%emt 0:07:59]} 15. f4 {[%emt 0:02:22]} Bf6 {[%emt 0:02:09]} 16. dxe6 {[%emt 0:00:36]} fxe6 {[%emt 0:06:14]} 17. e4 {[%emt 0:00:17]} fxe4 {[%emt 0:00:04]} 18. Bxe4 {[%emt 0:00:05]} Qa6 {[%emt 0:00:02]} 19. f5 {[%emt 0:02:57]} Be5 {[%emt 0:08:06]} 20. Rb1 {[%emt 0:10:49]} Rb8 {[%emt 0:05:36]} 21. Qe2 {[%emt 0:03:17]} Kd8 22. Ng5 {[%emt 0:01:21]} exf5 {[%emt 0:11:44]} 23. Nf7+ {[%emt 0:08:47]} Kc7 {[%emt 0:00:15]} 24. Nxe5 {[%emt 0:00:34]} dxe5 {[%emt 0:00:57]} 25. Bxf5 {[%emt 0:00:05]} Rbe8 {[%emt 0:00:16]} 26. Bxd7 {[%emt 0:00:12]} Kxd7 {[%emt 0:00:07]} 27. Rf7+ {[%emt 0:00:14]} Kc8 {[%emt 0:00:21]} 28. Qe4 {[%emt 0:00:38]} Qc6 {[%emt 0:01:07]} 29. Qxc6+ {[%emt 0:02:07]} bxc6 {[%emt 0:00:01]} 30. Rxa7 {[%emt 0:00:07]} e4 {[%emt 0:00:08]} 31. Kf2 {[%emt 0:02:18]} Rd8 {[%emt 0:02:02]} 32. Ke2 {[%emt 0:01:09]} Rhg8 {[%emt 0:00:11]} 33. g3 {[%emt 0:03:10]} h5 {[%emt 0:00:07]} 34. Ke3 {[%emt 0:06:55]} h4 {[%emt 0:00:38]} 35. gxh4 {[%emt 0:00:36]} Rg2 {[%emt 0:01:08]} 36. Ra8+ {[%emt 0:00:23]} Kc7 {[%emt 0:00:01]} 37. Rxd8 {[%emt 0:00:12]} Kxd8 {[%emt 0:00:00]} 38. Rd1+ {[%emt 0:00:17]} Ke7 {[%emt 0:00:50]} 39. Rd2 {[%emt 0:02:00]} Rg4 {[%emt 0:00:02]} 40. a4 {[%emt 0:02:40]} Rxh4 {[%emt 0:00:06]} 41. a5 {[%emt 0:30:05]} Ke6 {[%emt 0:04:59]} 42. Rd8 {[%emt 0:00:00]} Ke5 {[%emt 0:01:24]} 43. Re8+ {[%emt 0:00:00]} Kf5 {[%emt 0:00:04]} 44. a6 {[%emt 0:00:00]} Rh3+ {[%emt 0:00:08]} 45. Kf2 {[%emt 0:00:00]} Rxh2+ {[%emt 0:00:04]} 46. Kg3 {[%emt 0:00:00]} Ra2 {[%emt 0:00:04]} 47. Ra8 {[%emt 0:00:00]} Kf6 {[%emt 0:06:32]} 48. a7 {[%emt 0:00:00]} Kg7 {[%emt 0:00:03]} 49. Kf4 {[%emt 0:00:00]} Ra4 {[%emt 0:06:26]} 50. Kxe4 {[%emt 0:00:00]} Rxc4+ {[%emt 0:00:06]} 51. Ke5 {[%emt 0:00:00]} Ra4 {[%emt 0:00:05]} 52. c4 {[%emt 0:00:00]} Ra6 {[%emt 0:04:14]} 53. Kd6 {[%emt 0:00:00]} Kh7 {[%emt 0:00:06]} 54. Rc8 {[%emt 0:00:00]} 1-0

[Event "WJCC U20 Open 2019"]
[Site "New Delhi"]
[Date "2019.10.17"]
[Round "4.25"]
[White "Arjun Kalyan"]
[Black "Neelash Saha"]
[Result "0-1"]
[ECO "B12"]
[WhiteElo "2483"]
[BlackElo "2334"]
[Annotator "ChessBase"]
[PlyCount "84"]
[EventDate "2019.10.15"]
[EventType "swiss"]
[EventCountry "IND"]
[SourceTitle "playchess.com"]
[Source "ChessBase"]
[SourceQuality "1"]
[TimeControl "40/5400+30:1800+30"]

1. e4 {[%emt 0:00:00]} c6 {[%emt 0:00:22]} 2. d4 {[%emt 0:00:17]} d5 {[%emt 0:00:05]} 3. e5 {[%emt 0:00:06]} Bf5 {[%emt 0:00:07]} 4. h4 {[%emt 0:00:19]} h5 {[%emt 0:00:06]} 5. Bd3 {[%emt 0:00:12]} Bxd3 {[%emt 0:00:08]} 6. Qxd3 {[%emt 0:00:05]} Qa5+ {[%emt 0:00:04]} 7. Nd2 {[%emt 0:00:41]} e6 {[%emt 0:00:10]} 8. Ngf3 {[%emt 0:00:43]} Qa6 {[%emt 0:00:26]} 9. c4 {[%emt 0:00:22]} Ne7 {[%emt 0:00:37]} 10. O-O {[%emt 0:00:14]} Nf5 {[%emt 0:00:08]} 11. b3 {[%emt 0:00:27]} Be7 {[%emt 0:00:50]} 12. a4 {[%emt 0:00:28]} Nd7 {[%emt 0:08:48]} 13. Ba3 {[%emt 0:00:37]} Bxa3 {[%emt 0:15:29]} 14. Rxa3 {[%emt 0:00:02]} Qb6 {[%emt 0:00:06]} 15. b4 {[%emt 0:02:10]} Qd8 {[%emt 0:02:40]} 16. cxd5 {[%emt 0:13:21]} cxd5 {[%emt 0:00:07]} 17. Rc1 {[%emt 0:00:37]} Rc8 {[%emt 0:35:45]} 18. Rxc8 {[%emt 0:18:46]} Qxc8 {[%emt 0:00:05]} 19. Rc3 {[%emt 0:00:03]} Qb8 {[%emt 0:00:38]} 20. Qc2 {[%emt 0:11:01]} O-O {[%emt 0:00:38]} 21. a5 {[%emt 0:00:17]} Rd8 {[%emt 0:08:03]} 22. b5 {[%emt 0:05:29]} Ne7 {[%emt 0:06:32]} 23. Ng5 {[%emt 0:02:19]} Nf8 {[%emt 0:01:48]} 24. Qd1 {[%emt 0:08:54]} Rc8 {[%emt 0:06:45]} 25. Qxh5 {[%emt 0:05:52]} Rxc3 {[%emt 0:00:44]} 26. Qxf7+ {[%emt 0:00:06]} Kh8 {[%emt 0:00:02]} 27. Qxe7 {[%emt 0:05:26]} Rc7 {[%emt 0:00:16]} 28. Qa3 {[%emt 0:01:43]} Kg8 {[%emt 0:02:01]} 29. Ndf3 {[%emt 0:01:35]} Qe8 {[%emt 0:00:55]} 30. Qd3 {[%emt 0:02:32]} Rc4 {[%emt 0:01:06]} 31. Qb1 {[%emt 0:01:29]} Qe7 {[%emt 0:01:30]} 32. b6 {[%emt 0:01:21]} Rb4 {[%emt 0:02:18]} 33. Qc2 {[%emt 0:00:41]} axb6 {[%emt 0:00:21]} 34. axb6 {[%emt 0:00:02]} Rxb6 {[%emt 0:00:24]} 35. g4 {[%emt 0:01:37]} Rc6 {[%emt 0:00:35]} 36. Qd2 {[%emt 0:00:01]} b5 {[%emt 0:00:21]} 37. Ne1 {[%emt 0:00:32]} Rc4 38. Ngf3 {[%emt 0:00:41]} Qa3 {[%emt 0:05:16]} 39. h5 {[%emt 0:01:00]} Qc1 {[%emt 0:00:22]} 40. Qa5 {[%emt 0:00:26]} b4 {[%emt 0:00:38]} 41. Qd8 {[%emt 0:31:53]} Qf4 {[%emt 0:30:38]} 42. g5 {[%emt 0:00:37]} Qg4+ {[%emt 0:01:25]} 0-1

[Event "WJCC U20 Open 2019"]
[Site "New Delhi"]
[Date "2019.10.17"]
[Round "4.26"]
[White "Bharath Subramaniyam H"]
[Black "Nitish Belurkar"]
[Result "1/2-1/2"]
[ECO "C14"]
[WhiteElo "2417"]
[BlackElo "2311"]
[Annotator "NA"]
[PlyCount "127"]
[EventDate "2019.10.15"]
[EventType "swiss"]
[EventCountry "IND"]
[SourceTitle "playchess.com"]
[Source "ChessBase"]
[SourceQuality "1"]
[TimeControl "40/5400+30:1800+30"]

1. e4 e6 2. d4 d5 3. Nc3 Nf6 4. Bg5 Be7 5. e5 Nfd7 6. Bxe7 $11 Qxe7 7. f4 a6 8. Nf3 c5 9. dxc5 Nc6 10. Qd2 Nxc5 11. Bd3 O-O 12. O-O f6 13. exf6 Qxf6 14. g3 Bd7 15. Rae1 Rad8 16. Ne5 Nxe5 17. Rxe5 Be8 18. Rfe1 Bf7 19. Qf2 Nd7 20. R5e2 Rfe8 21. Qf3 Nb8 22. Qf2 Nc6 23. g4 e5 24. fxe5 Nxe5 25. Qxf6 gxf6 26. Rf1 Kg7 27. Ref2 Rd6 28. Ne2 Bg6 29. Bf5 d4 30. Rd1 Bxf5 31. gxf5 d3 32. Nc1 d2 33. Nd3 Nxd3 34. Rfxd2 Rd5 35. Rxd3 Rxf5 36. Rg3+ Kf8 37. Rd2 Re1+ 38. Kg2 Rfe5 39. Kf2 Re7 40. c4 Rc1 41. b3 b5 42. cxb5 axb5 43. Rf3 Kg7 44. Rf5 Rb7 45. Kg3 Ra1 46. Rdf2 Rb6 47. Kh4 Ra6 48. Rg2+ Kf7 49. Rff2 Ke6 50. Kh5 Ke5 51. Re2+ Kd4 52. Kh6 f5+ 53. Kg5 f4 54. Rd2+ Kc3 55. Kxf4 Kb4 56. Ke5 Ka3 57. Kd5 b4 58. Rc2 Rd1+ 59. Rgd2 Rxd2+ 60. Rxd2 Ra8 61. Kc6 Rc8+ 62. Kb7 Rg8 63. Rc2 h5 64. Kb6 1/2-1/2

[Event "WJCC U20 Open 2019"]
[Site "New Delhi"]
[Date "2019.10.17"]
[Round "4.28"]
[White "Papadiamandis, Elliot"]
[Black "Hollan, Martin"]
[Result "1/2-1/2"]
[ECO "C55"]
[WhiteElo "2190"]
[BlackElo "2403"]
[Annotator "NA"]
[PlyCount "67"]
[EventDate "2019.10.15"]
[EventType "swiss"]
[EventCountry "IND"]
[SourceTitle "playchess.com"]
[Source "ChessBase"]
[SourceQuality "1"]
[TimeControl "40/5400+30:1800+30"]

1. e4 {[%emt 0:00:43]} e5 {[%emt 0:00:00]} 2. Nf3 {[%emt 0:00:18]} Nc6 {[%emt 0:00:00]} 3. Bc4 {[%emt 0:00:16]} Nf6 {[%emt 0:00:00]} 4. d3 {[%emt 0:00:06]} Be7 {[%emt 0:00:07]} 5. c3 {[%emt 0:00:10]} O-O {[%emt 0:00:08]} 6. Nbd2 {[%emt 0:00:22]} d6 {[%emt 0:00:49]} 7. Bb3 {[%emt 0:00:18]} Be6 $14 {[%emt 0:01:06]} 8. O-O {[%emt 0:03:52]} Qd7 {[%emt 0:03:02]} 9. Re1 {[%emt 0:01:38]} Rae8 {[%emt 0:03:40]} 10. d4 {[%emt 0:03:58]} Bxb3 {[%emt 0:01:56]} 11. Qxb3 {[%emt 0:02:27]} Qc8 {[%emt 0:00:29]} 12. d5 {[%emt 0:06:29]} Nd8 {[%emt 0:04:27]} 13. Nf1 {[%emt 0:02:58]} Nh5 {[%emt 0:02:42]} 14. Qd1 {[%emt 0:00:38]} g6 {[%emt 0:00:30]} 15. Bh6 {[%emt 0:02:03]} Ng7 {[%emt 0:00:11]} 16. Qd2 {[%emt 0:03:10]} f5 {[%emt 0:02:06]} 17. exf5 {[%emt 0:02:48]} Qxf5 {[%emt 0:00:48]} 18. Ng3 {[%emt 0:01:39]} Qd7 {[%emt 0:00:23]} 19. Ne4 {[%emt 0:01:43]} Nf7 {[%emt 0:10:26]} 20. Bxg7 {[%emt 0:02:36]} Kxg7 {[%emt 0:00:11]} 21. c4 {[%emt 0:01:25]} h6 {[%emt 0:01:39]} 22. b4 {[%emt 0:03:13]} g5 {[%emt 0:00:55]} 23. Qd3 {[%emt 0:02:14]} Nh8 {[%emt 0:06:07]} 24. Ng3 {[%emt 0:08:21]} Ng6 {[%emt 0:02:10]} 25. Nh5+ {[%emt 0:00:24]} Kh7 {[%emt 0:00:08]} 26. Nd2 {[%emt 0:00:44]} Qg4 {[%emt 0:21:27]} 27. Qe2 {[%emt 0:01:45]} Qf5 {[%emt 0:04:18]} 28. Rf1 {[%emt 0:03:40]} g4 {[%emt 0:05:35]} 29. Ng3 {[%emt 0:00:48]} Nf4 {[%emt 0:01:26]} 30. Qe4 {[%emt 0:01:12]} Qxe4 {[%emt 0:00:13]} 31. Ngxe4 {[%emt 0:01:11]} b5 {[%emt 0:09:21]} 32. Rfd1 {[%emt 0:06:27]} a5 {[%emt 0:01:21]} 33. bxa5 {[%emt 0:00:54]} bxc4 {[%emt 0:04:30]} 34. Nxc4 {[%emt 0:04:38]} 1/2-1/2

[Event "WJCC U20 Open 2019"]
[Site "New Delhi"]
[Date "2019.10.17"]
[Round "4.29"]
[White "Di Benedetto, Edoardo"]
[Black "Saurabh Anand"]
[Result "0-1"]
[ECO "D31"]
[WhiteElo "2401"]
[BlackElo "2236"]
[Annotator "NA"]
[PlyCount "66"]
[EventDate "2019.10.15"]
[EventType "swiss"]
[EventCountry "IND"]
[SourceTitle "playchess.com"]
[Source "ChessBase"]
[SourceQuality "1"]
[TimeControl "40/5400+30:1800+30"]

1. d4 {[%emt 0:00:00]} d5 {[%emt 0:00:00]} 2. c4 {[%emt 0:00:00]} e6 {[%emt 0:00:08]} 3. Nc3 {[%emt 0:00:00]} Be7 {[%emt 0:00:24]} 4. cxd5 {[%emt 0:00:08]} exd5 {[%emt 0:00:31]} 5. Bf4 {[%emt 0:00:09]} c6 {[%emt 0:01:18]} 6. e3 {[%emt 0:00:23]} Bf5 {[%emt 0:00:35]} 7. g4 {[%emt 0:00:10]} Be6 {[%emt 0:00:57]} 8. h4 {[%emt 0:00:34]} Nd7 {[%emt 0:04:45]} 9. h5 {[%emt 0:00:30]} Nh6 {[%emt 0:04:49]} 10. Be2 {[%emt 0:00:53]} Qb6 {[%emt 0:01:38]} 11. Rb1 {[%emt 0:03:33]} f6 {[%emt 0:03:34]} 12. Bxh6 {[%emt 0:26:57]} gxh6 {[%emt 0:03:07]} 13. Nh3 {[%emt 0:00:11]} Bd6 {[%emt 0:05:48]} 14. Nf4 {[%emt 0:02:01]} Bxf4 {[%emt 0:01:25]} 15. exf4 {[%emt 0:00:08]} f5 {[%emt 0:00:43]} 16. g5 {[%emt 0:02:55]} O-O-O {[%emt 0:01:09]} 17. Qd2 {[%emt 0:03:38]} Rhf8 {[%emt 0:09:23]} 18. gxh6 {[%emt 0:16:04]} Nf6 {[%emt 0:03:16]} 19. f3 {[%emt 0:00:10]} Bf7 {[%emt 0:02:00]} 20. b4 {[%emt 0:01:46]} Nxh5 {[%emt 0:02:01]} 21. Kf2 {[%emt 0:06:01]} Qc7 {[%emt 0:05:45]} 22. Rh4 {[%emt 0:03:41]} Qd6 {[%emt 0:03:52]} 23. Rbh1 {[%emt 0:06:51]} Qxh6 {[%emt 0:05:18]} 24. Qd3 {[%emt 0:06:19]} Be8 {[%emt 0:01:41]} 25. a3 {[%emt 0:12:10]} Kb8 {[%emt 0:01:03]} 26. Qe3 {[%emt 0:01:37]} Rg8 {[%emt 0:01:47]} 27. Qe7 {[%emt 0:02:58]} Bg6 {[%emt 0:03:34]} 28. Qe5+ {[%emt 0:02:22]} Ka8 {[%emt 0:00:20]} 29. Qc7 {[%emt 0:01:39]} Rc8 {[%emt 0:07:21]} 30. Qd7 {[%emt 0:00:34]} Rgd8 {[%emt 0:01:53]} 31. Qe7 {[%emt 0:00:24]} Re8 {[%emt 0:00:16]} 32. Qd7 {[%emt 0:00:31]} Qf8 {[%emt 0:02:17]} 33. Rxh5 {[%emt 0:00:28]} Re7 {[%emt 0:00:34]} 0-1